Workbook

Sheet NSU
B1: Kaisaleena Saukko os. Rautakorpi | G1: 22.6.1994 Lapua
B2: SUPERPESIS | E2: Runkosarja | I2: Kärkilyönnit (KL), pesänvälit | Q2: Runkosarja | U2: Ylempi loppusarja | Z2: Alempi loppusarja | AG2: Arvo-ottelut ja mitalit
B3: Vuosi | C3: Sija | D3: Seura | E3: OTT | F3: KUN | G3: LÖI | H3: TOI | I3: KL | J3: 0 > 1 | K3: 1 > 2 | L3: 2 > 3 | M3: 3 > k | N3: KL-% | P3: LÖI | Q3: TOI | R3: L+T | S3: KL | U3: OTT | V3: KUN | W3: LÖI | X3: TOI | Y3: KL | Z3: OTT | AA3: KUN | AB3: LÖI | AC3: TOI | AD3: KL | AE3: IL | AF3: LL | AG3: Halli | AH3: K | AI3: H | AJ3: P
B4: 2010 | D4: Virkiä 2 | F4: ykköspesis
B5: 2011 | D5: Virkiä 2 | F5: ykköspesis
B6: 2012 | D6: Virkiä 2 | F6: ykköspesis
B7: 2013 | D7: SMJ | F7: ykköspesis | Z7: 4 | AA7: 0 | AB7: 0 | AC7: 3 | AD7: 15
B8: 2014 | D8: SMJ | F8: ykköspesis | Z8: 3 | AA8: 0 | AB8: 0 | AC8: 0 | AD8: 9
B9: 2015 | C9: 10. | D9: SMJ | E9: 24 | F9: 2 | G9: 1 | H9: 16 | I9: 89 | J9: 78 | K9: 6 | L9: 2 | M9: 3 | N9: 64.0 % | O9: 139
B10: 2016 | C10: 8. | D10: SMJ | E10: 21 | F10: 2 | G10: 0 | H10: 27 | I10: 77 | J10: 67 | K10: 5 | L10: 3 | M10: 2 | N10: 53.1 % | O10: 145 | Q10: 9. | T10: =PRODUCT(L10/S10) ->  | U10: 3 | V10: 0 | W10: 0 | X10: 1 | Y10: 14 | AF10: 1
B11: 2017 | C11: 8. | D11: SMJ | E11: 26 | F11: 2 | G11: 0 | H11: 27 | I11: 90 | J11: 74 | K11: 9 | L11: 5 | M11: 2 | N11: 58.1 % | O11: 155 | U11: 4 | V11: 0 | W11: 0 | X11: 3 | Y11: 12
B12: 2018 | C12: 4. | D12: Virkiä | E12: 26 | F12: 2 | G12: 0 | H12: 41 | I12: 92 | J12: 77 | K12: 9 | L12: 4 | M12: 2 | N12: 63.0 % | O12: 146 | Q12: 5. | U12: 10 | V12: 0 | W12: 0 | X12: 13 | Y12: 43
B13: 2019 | C13: 3. | D13: Virkiä | E13: 24 | F13: 2 | G13: 0 | H13: 43 | I13: 100 | J13: 90 | K13: 5 | L13: 3 | M13: 2 | N13: 73.5 % | O13: 136 | Q13: 5. | U13: 8 | V13: 1 | W13: 0 | X13: 7 | Y13: 31 | AE13: 1 | AJ13: 1
B14: 2020 | C14: 4. | D14: Virkiä | E14: 19 | F14: 2 | G14: 0 | H14: 44 | I14: 95 | J14: 86 | K14: 5 | L14: 2 | M14: 2 | N14: 79.2 % | O14: 120 | Q14: 4. | U14: 8 | V14: 0 | W14: 0 | X14: 17 | Y14: 37
B15: 2021 | C15: 4. | D15: Virkiä | E15: 23 | F15: 3 | G15: 0 | H15: 51 | I15: 121 | J15: 106 | K15: 9 | L15: 3 | M15: 3 | N15: 77.1 % | O15: 157 | Q15: 2. | S15: 6. | U15: 10 | V15: 1 | W15: 0 | X15: 13 | Y15: 57
B16: 2022 | C16: 3. | D16: Virkiä | E16: 19 | F16: 4 | G16: 0 | H16: 36 | I16: 95 | J16: 79 | K16: 8 | L16: 4 | M16: 4 | N16: 67.9 % | O16: 140 | Q16: 7. | U16: 11 | V16: 0 | W16: 2 | X16: 17 | Y16: 49 | AJ16: 1
B17: 2023 | C17: 3. | D17: Virkiä | E17: 21 | F17: 2 | G17: 1 | H17: 31 | I17: 85 | J17: 74 | K17: 3 | L17: 5 | M17: 3 | N17: 76.6 % | O17: 111 | U17: 10 | V17: 0 | W17: 1 | X17: 6 | Y17: 30
B18: 2024 | C18: 2. | D18: Virkiä | E18: 24 | F18: 0 | G18: 2 | H18: 22 | I18: 65 | J18: 57 | K18: 3 | L18: 3 | M18: 2 | N18: 67.7 % | O18: 96 | U18: 11 | V18: 1 | W18: 0 | X18: 10 | Y18: 34 | AI18: 1
B19: Yhteensä | E19: =SUM(E4:E18) -> 227 | F19: 21 | G19: 4 | H19: 338 | I19: 909 | J19: 788 | K19: 62 | L19: 34 | M19: 25 | N19: =PRODUCT(I19/O19) -> 67.6 % | O19: =SUM(O5:O18) -> 1345 | T19: =PRODUCT(L19/S19) ->  | U19: =SUM(U4:U18) -> 75 | V19: =SUM(V4:V18) -> 3 | W19: 3 | X19: 87 | Y19: 307 | Z19: 7 | AA19: 0 | AB19: 0 | AC19: 3 | AD19: 24 | AE19: 1 | AF19: 1 | AG19: 0 | AH19: 0 | AI19: 1 | AJ19: 2
B20: Pesispörssi | D20: =SUM(F19:H19)+((I19-F19-G19)/3)+(E19/3)+(AE19*25)+(AF19*25)+(AG19*10)+(AH19*25)+(AI19*20)+(AJ19*15) -> 833.3
B22: URA SUPERISSA | E22: OTT | F22: KUN | G22: LÖI | H22: TOI | I22: KL | K22: ka/L | L22: ka/T | M22: ka/KL | N22: KL-% | P22: ENSIMMÄISET
B23: Runkosarja | E23: =PRODUCT(E19) -> 227 | F23: =PRODUCT(F19) -> 21 | G23: =PRODUCT(G19) -> 4 | H23: =PRODUCT(H19) -> 338 | I23: =PRODUCT(I19) -> 909 | K23: =PRODUCT((F23+G23)/E23) -> 0.11 | L23: =PRODUCT(H23/E23) -> 1.49 | M23: =PRODUCT(I23/E23) -> 4.00 | N23: =PRODUCT(N19) -> 67.6 % | O23: =PRODUCT(O19) -> 1345 | P23: Ottelu | R23: 24.08. 2013 ViU - SMJ 2-1 (3-1, 3-4, 0-0, 2-3) | AB23: 1. ottelu | AE23: 19 v 2 kk 2 pv
B24: Ylempi loppusarja | E24: =PRODUCT(U19) -> 75 | F24: =PRODUCT(V19) -> 3 | G24: 3 | H24: 87 | I24: 307 | K24: =PRODUCT((F24+G24)/E24) -> 0.08 | L24: =PRODUCT(H24/E24) -> 1.16 | M24: =PRODUCT(I24/E24) -> 4.09 | N24: =PRODUCT(I24/O24) -> 65.3 % | O24: 470 | P24: Lyöty | R24: 01.07. 2015 SMJ - KaMa 2-1 (3-6, 6-1, 0-0, 2-0) | AB24: 17. ottelu | AE24: 21 v 0 kk 9 pv
B25: Alempi loppusarja | E25: =PRODUCT(Z19) -> 7 | F25: =PRODUCT(AA19) -> 0 | G25: =PRODUCT(AB19) -> 0 | H25: =PRODUCT(AC19) -> 3 | I25: =PRODUCT(AD19) -> 24 | K25: =PRODUCT((F25+G25)/E25) -> 0.00 | L25: =PRODUCT(H25/E25) -> 0.43 | M25: =PRODUCT(I25/E25) -> 3.43 | N25: =PRODUCT(I25/O25) -> 61.5 % | O25: 39 | P25: Tuotu | R25: 24.08. 2013 ViU - SMJ 2-1 (3-1, 3-4, 0-0, 2-3) | AB25: 1. ottelu | AE25: 19 v 2 kk 2 pv
B26: KAIKKI | E26: =SUM(E23:E25) -> 309 | F26: =SUM(F23:F25) -> 24 | G26: =SUM(G23:G25) -> 7 | H26: =SUM(H23:H25) -> 428 | I26: =SUM(I23:I25) -> 1240 | K26: =PRODUCT((F26+G26)/E26) -> 0.10 | L26: =PRODUCT(H26/E26) -> 1.39 | M26: =PRODUCT(I26/E26) -> 4.01 | N26: =PRODUCT(I26/O26) -> 66.9 % | O26: =SUM(O23:O25) -> 1854 | P26: Kunnari | R26: 14.07. 2015 SMJ - Pesä Ysit 2-1 (4-5, 2-1, 1-0) | AB26: 22. ottelu | AE26: 21 v 2 kk 15 pv
B28: Vuoden jokeri 2020
B30: Seurat | D30: Virkiä = Lapuan Virkiä (1907), kasvattajaseura
D31: SMJ = Seinäjoen Maila-Jussit (1932)

Sheet Arvo-ottelut
B1: ITÄ - LÄNSI - KORTTI
B2: Kaisaleena Saukko os. Rautakorpi | D2: 22.6.1994 Lapua
B3: NAISET | C3: Itä - Länsi, tulos | D3: Joukkue | E3: Seura | G3: V | H3: T | I3: H | J3: Up. | K3: Lj. | L3: Palk. | M3: O | N3: K | O3: L | P3: T | Q3: KL | R3: 1 | S3: 2 | T3: 3 | U3: k | V3: KL-% | W3: Pelinjohtaja | X3: Yleisöä
B4: 06.07. 2019 Seinäjoki | C4: 0-1 (1-2, 4-4) | D4: Länsi | E4: Virkiä | G4: 1 | K4: jok | M4: 1 | Q4: 3/5 | R4: 3/5 | V4: 60.0 % | W4: Tomi Niskanen | X4: 3911
B5: Ikä ensimmäisessä ottelussa | C5: 25 v 0 kk 14 pv
B7: LIITTO - LEHDISTÖ - KORTTI
B8: Kaisaleena Rautakorpi | C8: 22.6.1994 Lapua
B9: NAISET | C9: Itä - Länsi, tulos | D9: Joukkue | E9: Seura | G9: V | H9: T | I9: H | J9: Up. | K9: Lj. | L9: Palk. | M9: O | N9: K | O9: L | P9: T | Q9: KL | R9: 1 | S9: 2 | T9: 3 | U9: k | V9: KL-% | W9: Pelinjohtaja | X9: Yleisöä
B10: 17.06. 2016 Pori | C10: 1-0 (4-1, 1-1) | D10: Liitto | E10: SMJ | G10: 1 | K10: jok | M10: 1 | Q10: 0/3 | R10: 0/3 | V10: 0.0 % | W10: Antti Yli-Saunamäki | X10: 544
B11: Ikä ensimmäisessä ottelussa | C11: 21 v 11 kk 26 pv
